Organisation Name,Department where exp. Incurred,Service Category Label,Supplier (Beneficiary),Purpose of Expenditure,Procurement (Merchant) Category,Purchase Date,Settlement Date,Transaction Number,Net Amount (�)
Stockport MBC,Corporate and Support Services,Central Services to the public,AMAZON.CO.UK OU3X48KR5,Office Expenses,Stationery    ,22.01.2020,16.02.2020,GPC01200000001,53.99
Stockport MBC,Corporate and Support Services,Central Services to the public,TRAINLINE,Travelling Expenses,Human Resources Travel & Subsistence ,17.01.2020,16.02.2020,GPC01200000002,-4.40
Stockport MBC,Corporate and Support Services,Central Services to the public,THETRAINLINE.COM,Travelling Expenses,Human Resources Travel & Subsistence ,16.01.2020,16.02.2020,GPC01200000003,73.30
Stockport MBC,Corporate and Support Services,Central Services to the public,THETRAINLINE.COM,Expenses and Allowances,UNCLASSIFIED  ,13.01.2020,16.02.2020,GPC01200000004,150.30
Stockport MBC,Corporate and Support Services,Central Services to the public,AMAZON.CO.UK K60011XZ5,Office Expenses,Stationery    ,13.01.2020,16.02.2020,GPC01200000005,98.28
Stockport MBC,Corporate and Support Services,Central Services to the public,AVANTI WEST COAST,Travelling Expenses,Human Resources Travel & Subsistence ,03.01.2020,16.02.2020,GPC01200000006,142.00
Stockport MBC,Corporate and Support Services,Central Support Costs,FS  KREATURA,Furniture and Equipment,Environmental Services Technical Equipment ,30.01.2020,16.02.2020,GPC01200000007,20.00
Stockport MBC,Corporate and Support Services,Central Support Costs,GOOGLE  ADS3507315292,Office Expenses,Facilities & Management Services  ,29.01.2020,16.02.2020,GPC01200000008,200.00
Stockport MBC,Corporate and Support Services,Central Support Costs,APPLE.COM/BILL,Information and Communications Technology,Information Communication Technology  ,26.01.2020,16.02.2020,GPC01200000009,6.99
Stockport MBC,Corporate and Support Services,Central Support Costs,FACEBK  8PFDDRAMG2,Office Expenses,Facilities & Management Services  ,23.01.2020,16.02.2020,GPC01200000010,700.00
Stockport MBC,Corporate and Support Services,Central Support Costs,AMZNMKTPLACE AMAZON.CO,Office Expenses,Facilities & Management Services  ,19.01.2020,16.02.2020,GPC01200000011,25.33
Stockport MBC,Corporate and Support Services,Central Support Costs,AMZ TORRAS DIRECT,Information and Communications Technology,Information Communication Technology  ,18.01.2020,16.02.2020,GPC01200000012,-18.44
Stockport MBC,Corporate and Support Services,Central Support Costs,POPSOCKETS UK GBP,Information and Communications Technology,Information Communication Technology  ,17.01.2020,16.02.2020,GPC01200000013,3.00
Stockport MBC,Corporate and Support Services,Central Support Costs,GRAMMARLY COVMETUJA,Office Expenses,Facilities & Management Services  ,16.01.2020,16.02.2020,GPC01200000014,110.62
Stockport MBC,Corporate and Support Services,Central Support Costs,POPSOCKETS UK GBP,Information and Communications Technology,Information Communication Technology  ,13.01.2020,16.02.2020,GPC01200000015,22.49
Stockport MBC,Corporate and Support Services,Central Support Costs,AMZNMKTPLACE,Information and Communications Technology,Information Communication Technology  ,12.01.2020,16.02.2020,GPC01200000016,22.43
Stockport MBC,Corporate and Support Services,Central Support Costs,FACEBK  R5GN8QWLG2,Office Expenses,Facilities & Management Services  ,11.01.2020,16.02.2020,GPC01200000017,700.00
Stockport MBC,Corporate and Support Services,Central Support Costs,ENVATOMARKET50918824,Furniture and Equipment,Environmental Services Technical Equipment ,09.01.2020,16.02.2020,GPC01200000018,58.85
Stockport MBC,Corporate and Support Services,Central Support Costs,FASTHOSTS INTERNET,Furniture and Equipment,Environmental Services Technical Equipment ,09.01.2020,16.02.2020,GPC01200000019,5.00
Stockport MBC,Services to People,Childrens & Educational Services,ASDA STORES 4840,Catering Supplies,Catering Food & Beverages ,30.01.2020,16.02.2020,GPC01200000020,6.00
Stockport MBC,Services to People,Childrens & Educational Services,ASDA STORES 4840,Catering Supplies,Catering Food & Beverages ,30.01.2020,16.02.2020,GPC01200000021,14.75
Stockport MBC,Services to People,Childrens & Educational Services,ASDA STORES 4840,Catering Supplies,Catering Food & Beverages ,29.01.2020,16.02.2020,GPC01200000022,20.69
Stockport MBC,Services to People,Childrens & Educational Services,ASDA STORES 4840,Catering Supplies,Catering Food & Beverages ,28.01.2020,16.02.2020,GPC01200000023,15.95
Stockport MBC,Services to People,Childrens & Educational Services,ASDA STORES 4840,Catering Supplies,Catering Food & Beverages ,27.01.2020,16.02.2020,GPC01200000024,17.94
Stockport MBC,Services to People,Childrens & Educational Services,ASDA STORES 4840,Catering Supplies,Catering Food & Beverages ,24.01.2020,16.02.2020,GPC01200000025,10.11
Stockport MBC,Services to People,Childrens & Educational Services,ASDA STORES 4840,Catering Supplies,Catering Food & Beverages ,23.01.2020,16.02.2020,GPC01200000026,8.70
Stockport MBC,Services to People,Childrens & Educational Services,ASDA STORES 4840,Catering Supplies,Catering Food & Beverages ,22.01.2020,16.02.2020,GPC01200000027,19.33
Stockport MBC,Services to People,Childrens & Educational Services,ASDA STORES 4840,Catering Supplies,Catering Food & Beverages ,21.01.2020,16.02.2020,GPC01200000028,5.15
Stockport MBC,Services to People,Childrens & Educational Services,ASDA STORES 4840,Catering Supplies,Catering Food & Beverages ,20.01.2020,16.02.2020,GPC01200000029,21.48
Stockport MBC,Services to People,Childrens & Educational Services,ASDA STORES 4840,Catering Supplies,Catering Food & Beverages ,17.01.2020,16.02.2020,GPC01200000030,7.28
Stockport MBC,Services to People,Childrens & Educational Services,ASDA STORES 4840,Catering Supplies,Catering Food & Beverages ,10.01.2020,16.02.2020,GPC01200000031,14.45
Stockport MBC,Services to People,Childrens & Educational Services,ASDA STORES 4840,Catering Supplies,Catering Food & Beverages ,09.01.2020,16.02.2020,GPC01200000032,20.70
Stockport MBC,Services to People,Childrens & Educational Services,ASDA STORES 4840,Catering Supplies,Catering Food & Beverages ,08.01.2020,16.02.2020,GPC01200000033,14.14
Stockport MBC,Services to People,Childrens & Educational Services,ASDA STORES 4840,Catering Supplies,Catering Food & Beverages ,06.01.2020,16.02.2020,GPC01200000034,35.09
Stockport MBC,Services to People,Childrens & Educational Services,UNIVERSITY OF MANCHEST,Travelling Expenses,Human Resources Travel & Subsistence ,29.01.2020,16.02.2020,GPC01200000035,4.17
Stockport MBC,Services to People,Childrens & Educational Services,JOHN LEWIS,Information and Communications Technology,Information Communication Technology  ,21.01.2020,16.02.2020,GPC01200000036,160.84
Stockport MBC,Services to People,Childrens & Educational Services,PRINTMYTICKETS.CO.,Printing and Photocopying,Facilities & Management Services Printing ,15.01.2020,16.02.2020,GPC01200000037,28.05
Stockport MBC,Services to People,Childrens & Educational Services,ACP  MUSICROOM.COM,Library Equipment,Education Library Books ,08.01.2020,16.02.2020,GPC01200000038,61.20
Stockport MBC,Services to People,Childrens & Educational Services,PAYPAL  4A4QUARTET,Library Equipment,Education Library Books ,06.01.2020,16.02.2020,GPC01200000039,5.94
Stockport MBC,Services to People,Childrens & Educational Services,WWW.SAXTETPUBLICATIONS,Library Equipment,Education Library Books ,06.01.2020,16.02.2020,GPC01200000040,19.00
Stockport MBC,Services to People,Childrens & Educational Services,IKEA LTD 186 MANCHESTE,Furniture and Equipment,Furniture & Soft Furnishings  ,03.01.2020,16.02.2020,GPC01200000041,87.50
Stockport MBC,Services to People,Childrens & Educational Services,TRAINLINE,Travelling Expenses,Human Resources Travel & Subsistence ,30.01.2020,16.02.2020,GPC01200000042,173.40
Stockport MBC,Services to People,Childrens & Educational Services,TRAINLINE,Travelling Expenses,Human Resources Travel & Subsistence ,27.01.2020,16.02.2020,GPC01200000043,90.50
Stockport MBC,Services to People,Childrens & Educational Services,TRAINLINE,Travelling Expenses,Human Resources Travel & Subsistence ,27.01.2020,16.02.2020,GPC01200000044,73.50
Stockport MBC,Services to People,Childrens & Educational Services,GOOGLE  ADS8179771860,Office Expenses,Facilities & Management Services  ,27.01.2020,16.02.2020,GPC01200000045,500.00
Stockport MBC,Services to People,Childrens & Educational Services,TRAINLINE,Travelling Expenses,Human Resources Travel & Subsistence ,20.01.2020,16.02.2020,GPC01200000046,109.40
Stockport MBC,Services to People,Childrens & Educational Services,TRAINLINE,Travelling Expenses,Human Resources Travel & Subsistence ,20.01.2020,16.02.2020,GPC01200000047,361.50
Stockport MBC,Services to People,Childrens & Educational Services,AMZNMKTPLACE AMAZON.CO,Publicity and Promotion,Arts & Leisure Services  ,17.01.2020,16.02.2020,GPC01200000048,89.37
Stockport MBC,Services to People,Childrens & Educational Services,GOOGLE  ADS8179771860,Office Expenses,Facilities & Management Services  ,17.01.2020,16.02.2020,GPC01200000049,500.00
Stockport MBC,Services to People,Childrens & Educational Services,MY.MORRISONS.COM,Publicity and Promotion,Arts & Leisure Services  ,15.01.2020,16.02.2020,GPC01200000050,20.00
Stockport MBC,Services to People,Childrens & Educational Services,METRO TAXIS LIMITED,Publicity and Promotion,Arts & Leisure Services  ,14.01.2020,16.02.2020,GPC01200000051,20.00
Stockport MBC,Services to People,Childrens & Educational Services,METRO TAXIS LIMITED,Publicity and Promotion,Arts & Leisure Services  ,14.01.2020,16.02.2020,GPC01200000052,20.00
Stockport MBC,Services to People,Childrens & Educational Services,PREMIER INN 44537680,Travelling Expenses,Human Resources Travel & Subsistence ,10.01.2020,16.02.2020,GPC01200000053,322.00
Stockport MBC,Services to People,Childrens & Educational Services,TRAINLINE,Travelling Expenses,Human Resources Travel & Subsistence ,10.01.2020,16.02.2020,GPC01200000054,133.40
Stockport MBC,Services to People,Childrens & Educational Services,GOOGLE  ADS8179771860,Office Expenses,Facilities & Management Services  ,09.01.2020,16.02.2020,GPC01200000055,500.00
Stockport MBC,Services to People,Childrens & Educational Services,OODLES SOFT PLAY,Publicity and Promotion,Arts & Leisure Services  ,09.01.2020,16.02.2020,GPC01200000056,85.00
Stockport MBC,Services to People,Childrens & Educational Services,TRAINLINE,Travelling Expenses,Human Resources Travel & Subsistence ,06.01.2020,16.02.2020,GPC01200000057,286.50
Stockport MBC,Services to People,Childrens & Educational Services,TRAINLINE,Travelling Expenses,Human Resources Travel & Subsistence ,02.01.2020,16.02.2020,GPC01200000058,207.50
Stockport MBC,Services to People,Childrens & Educational Services,NCP LIMITED,Travelling Expenses,Human Resources Travel & Subsistence ,29.01.2020,16.02.2020,GPC01200000059,14.20
Stockport MBC,Services to People,Childrens & Educational Services,MANCHESTER OXFORD ROAD,Travelling Expenses,Human Resources Travel & Subsistence ,10.01.2020,16.02.2020,GPC01200000060,3.70
Stockport MBC,Services to Place,Central Support Costs,STOCKPORT T/O,Travelling Expenses,Human Resources Travel & Subsistence ,30.01.2020,16.02.2020,GPC01200000061,6.50
Stockport MBC,Services to Place,Central Support Costs,MANCHESTER PICC TVM,Travelling Expenses,Human Resources Travel & Subsistence ,30.01.2020,16.02.2020,GPC01200000062,4.30
Stockport MBC,Services to Place,Central Support Costs,CAFELITO,Office Expenses,Catering  ,28.01.2020,16.02.2020,GPC01200000063,1.98
Stockport MBC,Services to Place,Central Support Costs,CAFELITO,Office Expenses,Catering  ,28.01.2020,16.02.2020,GPC01200000064,11.02
Stockport MBC,Services to Place,Central Support Costs,STOCKPORT TVM,Travelling Expenses,Human Resources Travel & Subsistence ,24.01.2020,16.02.2020,GPC01200000065,6.50
Stockport MBC,Services to Place,Central Support Costs,Q PARK PICCADILLY PLAC,Travelling Expenses,Human Resources Travel & Subsistence ,21.01.2020,16.02.2020,GPC01200000066,5.00
Stockport MBC,Services to Place,Central Support Costs,STOCKPORT T/O,Travelling Expenses,Human Resources Travel & Subsistence ,13.01.2020,16.02.2020,GPC01200000067,6.50
Stockport MBC,Services to Place,Central Support Costs,STOCKPORT TVM,Travelling Expenses,Human Resources Travel & Subsistence ,10.01.2020,16.02.2020,GPC01200000068,6.50
Stockport MBC,Services to People,Childrens & Educational Services,AMZNMKTPLACE,Office Expenses,Stationery    ,28.01.2020,16.02.2020,GPC01200000069,4.08
Stockport MBC,Services to People,Childrens & Educational Services,AMAZON PRIME 0L0RB4D35,Furniture and Equipment,Furniture & Soft Furnishings  ,13.01.2020,16.02.2020,GPC01200000070,7.99
Stockport MBC,Services to People,Childrens & Educational Services,WM MORRISONS STORE,Catering Supplies,Catering Food & Beverages ,30.01.2020,16.02.2020,GPC01200000071,8.80
Stockport MBC,Services to People,Childrens & Educational Services,WM MORRISONS STORE,Catering Supplies,Catering Food & Beverages ,30.01.2020,16.02.2020,GPC01200000072,12.00
Stockport MBC,Services to People,Childrens & Educational Services,WM MORRISONS STORE,Catering Supplies,Catering Food & Beverages ,29.01.2020,16.02.2020,GPC01200000073,2.60
Stockport MBC,Services to People,Childrens & Educational Services,ASDA GROCERIES ONLINE,Catering Supplies,Catering Food & Beverages ,29.01.2020,16.02.2020,GPC01200000074,52.17
Stockport MBC,Services to People,Childrens & Educational Services,WM MORRISONS STORE,Catering Supplies,Catering Food & Beverages ,27.01.2020,16.02.2020,GPC01200000075,6.56
Stockport MBC,Services to People,Childrens & Educational Services,WM MORRISONS STORE,Catering Supplies,Catering Food & Beverages ,22.01.2020,16.02.2020,GPC01200000076,22.58
Stockport MBC,Services to People,Childrens & Educational Services,ASDA GROCERIES ONLINE,Catering Supplies,Catering Food & Beverages ,22.01.2020,16.02.2020,GPC01200000077,67.16
Stockport MBC,Services to People,Childrens & Educational Services,ASDA GROCERIES ONLINE,Catering Supplies,Catering Food & Beverages ,22.01.2020,16.02.2020,GPC01200000078,0.04
Stockport MBC,Services to People,Childrens & Educational Services,WM MORRISONS STORE,Catering Supplies,Catering Food & Beverages ,20.01.2020,16.02.2020,GPC01200000079,11.02
Stockport MBC,Services to People,Childrens & Educational Services,WM MORRISONS STORE,Catering Supplies,Catering Food & Beverages ,16.01.2020,16.02.2020,GPC01200000080,13.41
Stockport MBC,Services to People,Childrens & Educational Services,AMZNMKTPLACE,Furniture and Equipment,Environmental Services Technical Equipment ,15.01.2020,16.02.2020,GPC01200000081,27.98
Stockport MBC,Services to People,Childrens & Educational Services,ASDA GROCERIES ONLINE,Catering Supplies,Catering Food & Beverages ,14.01.2020,16.02.2020,GPC01200000082,53.68
Stockport MBC,Services to People,Childrens & Educational Services,TESCO STORES 2317,Catering Supplies,Catering Food & Beverages ,14.01.2020,16.02.2020,GPC01200000083,2.52
Stockport MBC,Services to People,Childrens & Educational Services,WM MORRISONS STORE,Catering Supplies,Catering Food & Beverages ,13.01.2020,16.02.2020,GPC01200000084,18.51
Stockport MBC,Services to People,Childrens & Educational Services,WM MORRISONS STORE,Catering Supplies,Catering Food & Beverages ,10.01.2020,16.02.2020,GPC01200000085,4.25
Stockport MBC,Services to People,Childrens & Educational Services,WM MORRISONS STORE,Catering Supplies,Catering Food & Beverages ,08.01.2020,16.02.2020,GPC01200000086,9.90
Stockport MBC,Services to People,Childrens & Educational Services,WM MORRISONS STORE,Catering Supplies,Catering Food & Beverages ,08.01.2020,16.02.2020,GPC01200000087,2.50
Stockport MBC,Services to People,Childrens & Educational Services,WM MORRISONS STORE,Catering Supplies,Catering Food & Beverages ,07.01.2020,16.02.2020,GPC01200000088,10.83
Stockport MBC,Services to People,Childrens & Educational Services,WM MORRISONS STORE,Catering Supplies,Catering Food & Beverages ,07.01.2020,16.02.2020,GPC01200000089,12.60
Stockport MBC,Services to People,Childrens & Educational Services,ASDA GROCERIES ONLINE,Catering Supplies,Catering Food & Beverages ,06.01.2020,16.02.2020,GPC01200000090,51.01
Stockport MBC,Corporate and Support Services,Corporate & Democratic Core,AMAZON.CO.UK 067666FJ5,Furniture and Equipment,Environmental Services Technical Equipment ,22.01.2020,16.02.2020,GPC01200000091,26.25
Stockport MBC,Corporate and Support Services,Corporate & Democratic Core,OPEN FORUM EVENTS,Staff Training,Human Resources  ,20.01.2020,16.02.2020,GPC01200000092,294.00
Stockport MBC,Corporate and Support Services,Corporate & Democratic Core,BEST WESTERN PLUS NOTT,Staff Training,Human Resources  ,14.01.2020,16.02.2020,GPC01200000093,106.21
Stockport MBC,Corporate and Support Services,Corporate & Democratic Core,WESTMINSTER INSIGHT,Staff Training,Human Resources  ,13.01.2020,16.02.2020,GPC01200000094,351.00
Stockport MBC,Corporate and Support Services,Corporate & Democratic Core,WWW.LOCAL.GOV.UK,Staff Training,Human Resources  ,13.01.2020,16.02.2020,GPC01200000095,60.00
Stockport MBC,Corporate and Support Services,Corporate & Democratic Core,AMZNMKTPLACE AMAZON.CO,Furniture and Equipment,Environmental Services Technical Equipment ,08.01.2020,16.02.2020,GPC01200000096,23.99
Stockport MBC,Corporate and Support Services,Central Support Costs,WWW.GOV.UK,Legal Fees,Legal Services  ,27.01.2020,16.02.2020,GPC01200000097,1.50
Stockport MBC,Corporate and Support Services,Corporate & Democratic Core,TRAVELODGE GB0000,Expenses and Allowances,Catering  ,24.01.2020,16.02.2020,GPC01200000098,-128.24
Stockport MBC,Services to Place,Planning Services,EB  UNIQUE LADIES WOME,Publicity and Promotion,Arts & Leisure Services  ,23.01.2020,16.02.2020,GPC01200000099,21.43
Stockport MBC,Corporate and Support Services,Central Support Costs,TRAINLINE,Travelling Expenses,Human Resources Travel & Subsistence ,23.01.2020,16.02.2020,GPC01200000100,41.90
Stockport MBC,Corporate and Support Services,Central Support Costs,TRAINLINE,Travelling Expenses,Human Resources Travel & Subsistence ,23.01.2020,16.02.2020,GPC01200000101,22.95
Stockport MBC,Services to Place,Highways & Transport Services,TRAINLINE,Travelling Expenses,Human Resources Travel & Subsistence ,23.01.2020,16.02.2020,GPC01200000102,236.50
Stockport MBC,Services to Place,Cultural & Related Services,TRAINLINE,Travelling Expenses,Human Resources Travel & Subsistence ,23.01.2020,16.02.2020,GPC01200000103,47.10
Stockport MBC,Corporate and Support Services,Central Services to the public,TRAINLINE,Travelling Expenses,Human Resources Travel & Subsistence ,23.01.2020,16.02.2020,GPC01200000104,91.30
Stockport MBC,Corporate and Support Services,Central Support Costs,LLG ENTERPRISES LTD,Staff Training,Human Resources  ,21.01.2020,16.02.2020,GPC01200000105,42.00
Stockport MBC,Corporate and Support Services,Central Support Costs,BT CONFERENCING,Information and Communications Technology,Information Communication Technology  ,20.01.2020,16.02.2020,GPC01200000106,3.82
Stockport MBC,Corporate and Support Services,Central Support Costs,ROYAL MAIL ONLINE SHOP,Office Expenses,Stationery    ,16.01.2020,16.02.2020,GPC01200000107,59.20
Stockport MBC,Corporate and Support Services,Central Support Costs,EGRESS SWITCH,Fees and Charges,"Works - Construction, Repair & Maintenance  ",07.01.2020,16.02.2020,GPC01200000108,108.00
Stockport MBC,Corporate and Support Services,Central Support Costs,TRAINLINE,Travelling Expenses,Human Resources Travel & Subsistence ,03.01.2020,16.02.2020,GPC01200000109,228.60
Stockport MBC,Services to People,Public Health,WWW.THE-BEADSHOP.UK,Office Expenses,Stationery    ,30.01.2020,16.02.2020,GPC01200000110,160.33
Stockport MBC,Services to People,Public Health,AVANTI WEST COAST,Travelling Expenses,Human Resources Travel & Subsistence ,07.01.2020,16.02.2020,GPC01200000111,186.00
Stockport MBC,Services to People,Public Health,WWW.MACARTS.CO.UK,Fees and Charges,UNCLASSIFIED  ,03.01.2020,16.02.2020,GPC01200000112,5.00
Stockport MBC,Services to People,Public Health,THETRAINLINE.COM,Travelling Expenses,Human Resources Travel & Subsistence ,03.01.2020,16.02.2020,GPC01200000113,56.70
Stockport MBC,Services to People,Childrens & Educational Services,AMZNMKTPLACE,Office Expenses,Stationery    ,23.01.2020,16.02.2020,GPC01200000114,27.74
Stockport MBC,Services to People,Childrens & Educational Services,AMAZON.CO.UK P507M0H45,Office Expenses,Stationery    ,21.01.2020,16.02.2020,GPC01200000115,27.45
Stockport MBC,Services to People,Childrens & Educational Services,AMAZON PRIME ZK9D88Z85,Office Expenses,Stationery    ,18.01.2020,16.02.2020,GPC01200000116,7.99
Stockport MBC,Services to People,Childrens & Educational Services,BOOKERECOMM,Office Expenses,Stationery    ,12.01.2020,16.02.2020,GPC01200000117,110.66
Stockport MBC,Services to Place,Childrens & Educational Services,SAINSBURYS 0851,Catering Supplies,Catering Food & Beverages ,28.01.2020,16.02.2020,GPC01200000118,11.00
Stockport MBC,Services to Place,Childrens & Educational Services,SAINSBURYS 0851,Catering Supplies,Catering Food & Beverages ,21.01.2020,16.02.2020,GPC01200000119,12.35
Stockport MBC,Services to Place,Childrens & Educational Services,CO-OP GROUP 070280,Catering Supplies,Catering Food & Beverages ,13.01.2020,16.02.2020,GPC01200000120,7.60
Stockport MBC,Services to People,Childrens & Educational Services,TFGM,Travelling Expenses,Human Resources Travel & Subsistence ,16.01.2020,16.02.2020,GPC01200000121,10.00
Stockport MBC,Services to People,Childrens & Educational Services,AMAZON.CO.UK Y84SR4LJ5,Furniture and Equipment,Environmental Services Technical Equipment ,15.01.2020,16.02.2020,GPC01200000122,37.28
Stockport MBC,Services to People,Childrens & Educational Services,W M MORRISONS.COM,Furniture and Equipment,Environmental Services Technical Equipment ,12.01.2020,16.02.2020,GPC01200000123,65.70
Stockport MBC,Services to People,Childrens & Educational Services,AMZNMKTPLACE,Furniture and Equipment,Environmental Services Technical Equipment ,08.01.2020,16.02.2020,GPC01200000124,45.07
Stockport MBC,Services to People,Childrens & Educational Services,AMZNMKTPLACE AMAZON.CO,Furniture and Equipment,Environmental Services Technical Equipment ,08.01.2020,16.02.2020,GPC01200000125,89.99
Stockport MBC,Services to People,Childrens & Educational Services,ASDA STORES 4840,Furniture and Equipment,Environmental Services Technical Equipment ,20.01.2020,16.02.2020,GPC01200000126,12.30
Stockport MBC,Services to People,Childrens & Educational Services,QUIZLET.COM,Library Equipment,Education Library Books ,14.01.2020,16.02.2020,GPC01200000127,35.99
Stockport MBC,Services to People,Childrens & Educational Services,THE POST OFFICE,Office Expenses,Mail Services�  ,13.01.2020,16.02.2020,GPC01200000128,14.80
Stockport MBC,Services to People,Childrens & Educational Services,WWW.TEACHIT.CO.UK,Library Equipment,Education Library Books ,09.01.2020,16.02.2020,GPC01200000129,30.00
Stockport MBC,Services to People,Childrens & Educational Services,POUNDSTRETCHER 793,Furniture and Equipment,Environmental Services Technical Equipment ,07.01.2020,16.02.2020,GPC01200000130,3.98
Stockport MBC,Services to People,Childrens & Educational Services,THE POST OFFICE,Office Expenses,Mail Services�  ,07.01.2020,16.02.2020,GPC01200000131,55.98
Stockport MBC,Services to People,Childrens & Educational Services,MANCHESTER,Third party payments - Private/Voluntary Sector,Social Community Care Supplies & Services  ,06.01.2020,16.02.2020,GPC01200000132,43.00
Stockport MBC,Corporate and Support Services,Corporate & Democratic Core,STOCKPORT T/O,Travelling Expenses,Human Resources Travel & Subsistence ,27.01.2020,16.02.2020,GPC01200000133,360.00
Stockport MBC,Corporate and Support Services,Corporate & Democratic Core,SAINSBURYS SUPERMARKET,Catering Supplies,Catering Food & Beverages ,09.01.2020,16.02.2020,GPC01200000134,8.90
Stockport MBC,Services to People,Adult Social Care,HMCOURTS-SERVICE.G,Legal Fees,Legal Services  ,10.01.2020,16.02.2020,GPC01200000135,75.00
Stockport MBC,Services to People,Childrens & Educational Services,METROLINK TVM,Third party payments - Private/Voluntary Sector,Social Community Care Supplies & Services  ,24.01.2020,16.02.2020,GPC01200000136,33.60
Stockport MBC,Services to People,Childrens & Educational Services,ASDA STORES 4840,Third party payments - Private/Voluntary Sector,Social Community Care Supplies & Services  ,24.01.2020,16.02.2020,GPC01200000137,10.67
Stockport MBC,Services to People,Childrens & Educational Services,POUNDSTRETCHER 793,Third party payments - Private/Voluntary Sector,Social Community Care Supplies & Services  ,22.01.2020,16.02.2020,GPC01200000138,9.48
Stockport MBC,Services to People,Childrens & Educational Services,ASDA STORES 4840,Third party payments - Private/Voluntary Sector,Social Community Care Supplies & Services  ,22.01.2020,16.02.2020,GPC01200000139,8.91
Stockport MBC,Services to People,Childrens & Educational Services,NCP LTD,Travelling Expenses,Human Resources Travel & Subsistence ,16.01.2020,16.02.2020,GPC01200000140,0.90
Stockport MBC,Services to People,Childrens & Educational Services,NCP LTD,Travelling Expenses,Human Resources Travel & Subsistence ,16.01.2020,16.02.2020,GPC01200000141,0.90
Stockport MBC,Services to People,Childrens & Educational Services,WATERSTONES,Library Equipment,Education Library Books ,16.01.2020,16.02.2020,GPC01200000142,63.03
Stockport MBC,Services to People,Childrens & Educational Services,ASDA STORES 4840,Catering Supplies,Catering Food & Beverages ,14.01.2020,16.02.2020,GPC01200000143,39.36
Stockport MBC,Services to People,Childrens & Educational Services,ASDA STORES 4840,Catering Supplies,Catering Food & Beverages ,13.01.2020,16.02.2020,GPC01200000144,95.19
Stockport MBC,Services to People,Childrens & Educational Services,ASDA STORES 4840,Catering Supplies,Catering Food & Beverages ,08.01.2020,16.02.2020,GPC01200000145,43.89
Stockport MBC,Services to People,Childrens & Educational Services,ARGOS LTD,Furniture and Equipment,Environmental Services Technical Equipment ,29.01.2020,16.02.2020,GPC01200000146,-34.99
Stockport MBC,Services to People,Childrens & Educational Services,ARGOS LTD,Furniture and Equipment,Environmental Services Technical Equipment ,28.01.2020,16.02.2020,GPC01200000147,75.00
Stockport MBC,Services to People,Childrens & Educational Services,ARGOS LTD,Furniture and Equipment,Environmental Services Technical Equipment ,28.01.2020,16.02.2020,GPC01200000148,-75.00
Stockport MBC,Services to People,Childrens & Educational Services,O2,Expenses and Allowances,Human Resources Training & Conferences ,27.01.2020,16.02.2020,GPC01200000149,162.00
Stockport MBC,Services to People,Childrens & Educational Services,THETRAINLINE.COM,Travelling Expenses,Human Resources Travel & Subsistence ,27.01.2020,16.02.2020,GPC01200000150,-14.40
Stockport MBC,Services to People,Childrens & Educational Services,ARGOS LTD,Furniture and Equipment,Environmental Services Technical Equipment ,24.01.2020,16.02.2020,GPC01200000151,40.00
Stockport MBC,Services to People,Childrens & Educational Services,TRAINLINE,Travelling Expenses,Human Resources Travel & Subsistence ,24.01.2020,16.02.2020,GPC01200000152,35.15
Stockport MBC,Services to People,Childrens & Educational Services,PREMIER INN44521425,Travelling Expenses,Human Resources Travel & Subsistence ,23.01.2020,16.02.2020,GPC01200000153,279.00
Stockport MBC,Corporate and Support Services,Central Support Costs,HOLIDAY INNS,Staff Training,Human Resources  ,23.01.2020,16.02.2020,GPC01200000154,51.00
Stockport MBC,Services to People,Childrens & Educational Services,LITTLEHAVENHOTEL.COM,Expenses and Allowances,Human Resources Training & Conferences ,23.01.2020,16.02.2020,GPC01200000155,77.50
Stockport MBC,Services to People,Childrens & Educational Services,LITTLEHAVENHOTEL.COM,Expenses and Allowances,Human Resources Training & Conferences ,23.01.2020,16.02.2020,GPC01200000156,465.00
Stockport MBC,Services to People,Childrens & Educational Services,PREMIER INN44521425,Travelling Expenses,Human Resources Travel & Subsistence ,22.01.2020,16.02.2020,GPC01200000157,131.00
Stockport MBC,Services to People,Childrens & Educational Services,PREMIER INN44018615,Expenses and Allowances,Human Resources Training & Conferences ,22.01.2020,16.02.2020,GPC01200000158,59.50
Stockport MBC,Services to People,Childrens & Educational Services,ARGOS LTD,Furniture and Equipment,Environmental Services Technical Equipment ,22.01.2020,16.02.2020,GPC01200000159,34.99
Stockport MBC,Services to People,Childrens & Educational Services,ARGOS LTD,Furniture and Equipment,Environmental Services Technical Equipment ,22.01.2020,16.02.2020,GPC01200000160,207.95
Stockport MBC,Services to People,Childrens & Educational Services,HOLIDAY INNS,Staff Training,Human Resources  ,22.01.2020,16.02.2020,GPC01200000161,103.00
Stockport MBC,Services to People,Childrens & Educational Services,TRAINLINE,Travelling Expenses,Human Resources Travel & Subsistence ,20.01.2020,16.02.2020,GPC01200000162,20.35
Stockport MBC,Services to People,Childrens & Educational Services,THETRAINLINE.COM,Travelling Expenses,Human Resources Travel & Subsistence ,20.01.2020,16.02.2020,GPC01200000163,-154.80
Stockport MBC,Services to People,Childrens & Educational Services,THETRAINLINE.COM,Travelling Expenses,Human Resources Travel & Subsistence ,17.01.2020,16.02.2020,GPC01200000164,166.30
Stockport MBC,Services to People,Childrens & Educational Services,THETRAINLINE.COM,Travelling Expenses,Human Resources Travel & Subsistence ,17.01.2020,16.02.2020,GPC01200000165,35.15
Stockport MBC,Services to People,Childrens & Educational Services,NATIONAL EXPRESS LIMIT,Care Payments,Social Community Care Supplies & Services  ,16.01.2020,16.02.2020,GPC01200000166,165.40
Stockport MBC,Services to People,Childrens & Educational Services,TRAVELODGE GB0000,Expenses and Allowances,Human Resources Training & Conferences ,16.01.2020,16.02.2020,GPC01200000167,99.24
Stockport MBC,Services to People,Childrens & Educational Services,BRITANNIA HOTEL,Care Payments,Social Community Care Supplies & Services  ,15.01.2020,16.02.2020,GPC01200000168,-50.25
Stockport MBC,Services to People,Childrens & Educational Services,BRITANNIA,Care Payments,Social Community Care Supplies & Services  ,14.01.2020,16.02.2020,GPC01200000169,54.00
Stockport MBC,Services to People,Childrens & Educational Services,BRITANNIA,Care Payments,Social Community Care Supplies & Services  ,14.01.2020,16.02.2020,GPC01200000170,50.25
Stockport MBC,Services to People,Childrens & Educational Services,EASYJET00 000K18NL8N,Travelling Expenses,Human Resources Travel & Subsistence ,14.01.2020,16.02.2020,GPC01200000171,115.48
Stockport MBC,Services to People,Childrens & Educational Services,THETRAINLINE.COM,Travelling Expenses,Human Resources Travel & Subsistence ,13.01.2020,16.02.2020,GPC01200000172,-11.80
Stockport MBC,Services to People,Childrens & Educational Services,PREMIER INN44010600,Care Payments,Social Community Care Supplies & Services  ,08.01.2020,16.02.2020,GPC01200000173,485.00
Stockport MBC,Services to People,Childrens & Educational Services,TRAINLINE,Travelling Expenses,Human Resources Travel & Subsistence ,08.01.2020,16.02.2020,GPC01200000174,631.50
Stockport MBC,Services to People,Childrens & Educational Services,PREMIER INN44016765,Expenses and Allowances,Human Resources Training & Conferences ,07.01.2020,16.02.2020,GPC01200000175,138.00
Stockport MBC,Services to People,Childrens & Educational Services,PREMIER INN44010600,Care Payments,Social Community Care Supplies & Services  ,07.01.2020,16.02.2020,GPC01200000176,162.00
Stockport MBC,Services to People,Childrens & Educational Services,THETRAINLINE.COM,Travelling Expenses,Human Resources Travel & Subsistence ,07.01.2020,16.02.2020,GPC01200000177,120.30
Stockport MBC,Services to People,Childrens & Educational Services,THETRAINLINE.COM,Travelling Expenses,Human Resources Travel & Subsistence ,06.01.2020,16.02.2020,GPC01200000178,17.95
Stockport MBC,Services to People,Childrens & Educational Services,TRAINLINE,Travelling Expenses,Human Resources Travel & Subsistence ,06.01.2020,16.02.2020,GPC01200000179,17.95
Stockport MBC,Services to People,Childrens & Educational Services,TRAINLINE,Travelling Expenses,Human Resources Travel & Subsistence ,03.01.2020,16.02.2020,GPC01200000180,-32.00
Stockport MBC,Services to People,Childrens & Educational Services,FINANCIAL RECOVERI,Furniture and Equipment,Environmental Services Technical Equipment ,30.01.2020,16.02.2020,GPC01200000181,84.90
Stockport MBC,Services to People,Childrens & Educational Services,AMZNMKTPLACE AMAZON.CO,Information and Communications Technology,Information Communication Technology  ,21.01.2020,16.02.2020,GPC01200000182,479.98
Stockport MBC,Services to People,Childrens & Educational Services,AMZNMKTPLACE,Furniture and Equipment,Furniture & Soft Furnishings  ,21.01.2020,16.02.2020,GPC01200000183,825.00
Stockport MBC,Services to People,Childrens & Educational Services,SCRIBBL.CO.UK,Office Expenses,Stationery    ,21.01.2020,16.02.2020,GPC01200000184,144.60
Stockport MBC,Services to People,Childrens & Educational Services,THETRAINLINE.COM,Travelling Expenses,Human Resources Travel & Subsistence ,16.01.2020,16.02.2020,GPC01200000185,183.50
Stockport MBC,Services to People,Childrens & Educational Services,THETRAINLINE.COM,Travelling Expenses,Human Resources Travel & Subsistence ,16.01.2020,16.02.2020,GPC01200000186,239.10
Stockport MBC,Services to People,Childrens & Educational Services,THETRAINLINE.COM,Care Payments,Social Community Care Supplies & Services  ,16.01.2020,16.02.2020,GPC01200000187,-46.55
Stockport MBC,Services to People,Childrens & Educational Services,THE WINCHESTER HOTEL A,Third party payments - Private/Voluntary Sector,Social Community Care Supplies & Services  ,14.01.2020,16.02.2020,GPC01200000188,89.00
Stockport MBC,Services to People,Childrens & Educational Services,THETRAINLINE.COM,Care Payments,Social Community Care Supplies & Services  ,13.01.2020,16.02.2020,GPC01200000189,17.95
Stockport MBC,Services to People,Childrens & Educational Services,TRAINLINE,Care Payments,Social Community Care Supplies & Services  ,13.01.2020,16.02.2020,GPC01200000190,17.95
Stockport MBC,Services to People,Childrens & Educational Services,AMZNMKTPLACE,Office Expenses,Stationery    ,13.01.2020,16.02.2020,GPC01200000191,13.47
Stockport MBC,Services to People,Childrens & Educational Services,THETRAINLINE.COM,Care Payments,Social Community Care Supplies & Services  ,10.01.2020,16.02.2020,GPC01200000192,-9.10
Stockport MBC,Services to People,Childrens & Educational Services,THETRAINLINE.COM,Travelling Expenses,Human Resources Travel & Subsistence ,10.01.2020,16.02.2020,GPC01200000193,104.50
Stockport MBC,Services to People,Childrens & Educational Services,THETRAINLINE.COM,Travelling Expenses,Human Resources Travel & Subsistence ,10.01.2020,16.02.2020,GPC01200000194,17.75
Stockport MBC,Services to People,Childrens & Educational Services,ASAP STAMPS LTD.,Office Expenses,Stationery    ,10.01.2020,16.02.2020,GPC01200000195,9.10
Stockport MBC,Services to People,Childrens & Educational Services,TRAVELODGE GB0000,Care Payments,Social Community Care Supplies & Services  ,06.01.2020,16.02.2020,GPC01200000196,38.12
Stockport MBC,Services to Place,Planning Services,SQUARESPACE INC.,Office Expenses,Facilities & Management Services  ,21.01.2020,16.02.2020,GPC01200000197,216.00
Stockport MBC,Services to People,Childrens & Educational Services,THETRAINLINE.COM,Travelling Expenses,Human Resources Travel & Subsistence ,30.01.2020,16.02.2020,GPC01200000198,229.50
Stockport MBC,Services to People,Childrens & Educational Services,ARGOS LTD,Staff Training,Human Resources  ,28.01.2020,16.02.2020,GPC01200000199,75.00
Stockport MBC,Services to People,Childrens & Educational Services,THETRAINLINE.COM,Travelling Expenses,Human Resources Travel & Subsistence ,28.01.2020,16.02.2020,GPC01200000200,393.50
Stockport MBC,Services to People,Childrens & Educational Services,PREMIER INN 39137590,Staff Training,Human Resources  ,23.01.2020,16.02.2020,GPC01200000201,381.00
Stockport MBC,Services to People,Childrens & Educational Services,AMZNMKTPLACE AMAZON.CO,Furniture and Equipment,Environmental Services Technical Equipment ,23.01.2020,16.02.2020,GPC01200000202,20.98
Stockport MBC,Services to People,Childrens & Educational Services,THETRAINLINE.COM,Travelling Expenses,Human Resources Travel & Subsistence ,23.01.2020,16.02.2020,GPC01200000203,594.90
Stockport MBC,Services to People,Childrens & Educational Services,PROARK UK HOTELS LTD O,Expenses and Allowances,Human Resources Training & Conferences ,21.01.2020,16.02.2020,GPC01200000204,556.00
Stockport MBC,Services to People,Childrens & Educational Services,THETRAINLINE.COM,Travelling Expenses,Human Resources Travel & Subsistence ,21.01.2020,16.02.2020,GPC01200000205,21.85
Stockport MBC,Services to People,Childrens & Educational Services,AIR TRANS HXKE7X       0,Care Payments,Social Community Care Supplies & Services  ,07.01.2020,16.02.2020,GPC01200000206,352.56
Stockport MBC,Services to People,Childrens & Educational Services,MIM MIMEO LTD,Furniture and Equipment,Furniture & Soft Furnishings  ,27.01.2020,16.02.2020,GPC01200000207,28.04
Stockport MBC,Services to People,Childrens & Educational Services,EB  WHITE ROSE MATHS M,Furniture and Equipment,Furniture & Soft Furnishings  ,22.01.2020,16.02.2020,GPC01200000208,114.34
Stockport MBC,Services to People,Childrens & Educational Services,WM MORRISONS STORE,Furniture and Equipment,Furniture & Soft Furnishings  ,21.01.2020,16.02.2020,GPC01200000209,45.20
Stockport MBC,Services to People,Childrens & Educational Services,B SQUARED LTD,Furniture and Equipment,Furniture & Soft Furnishings  ,15.01.2020,16.02.2020,GPC01200000210,60.00
Stockport MBC,Services to People,Childrens & Educational Services,TESCO STORES 3378,Catering Supplies,Catering Food & Beverages ,29.01.2020,16.02.2020,GPC01200000211,17.30
Stockport MBC,Services to People,Childrens & Educational Services,TESCO STORES 3378,Catering Supplies,Catering Food & Beverages ,27.01.2020,16.02.2020,GPC01200000212,17.50
Stockport MBC,Services to People,Childrens & Educational Services,W M MORRISONS.COM,Catering Supplies,Catering Food & Beverages ,21.01.2020,16.02.2020,GPC01200000213,53.45
Stockport MBC,Services to People,Childrens & Educational Services,THE SAFER FOOD GROUP,Catering Supplies,Catering Food & Beverages ,21.01.2020,16.02.2020,GPC01200000214,28.80
Stockport MBC,Services to People,Childrens & Educational Services,TESCO STORES 5128,Catering Supplies,Catering Food & Beverages ,08.01.2020,16.02.2020,GPC01200000215,14.94
Stockport MBC,Services to People,Childrens & Educational Services,ALDI 40 773,Catering Supplies,Catering Food & Beverages ,07.01.2020,16.02.2020,GPC01200000216,43.14
Stockport MBC,Services to People,Childrens & Educational Services,JUST EAT,Catering Supplies,Catering Food & Beverages ,26.01.2020,16.02.2020,GPC01200000217,53.40
Stockport MBC,Services to People,Childrens & Educational Services,WWW.TENPIN.CO.UK,Publicity and Promotion,Arts & Leisure Services  ,25.01.2020,16.02.2020,GPC01200000218,59.94
Stockport MBC,Services to People,Childrens & Educational Services,MCDONALDS,Catering Supplies,Catering Food & Beverages ,24.01.2020,16.02.2020,GPC01200000219,11.00
Stockport MBC,Services to People,Childrens & Educational Services,WWW.TAKEAWAY.JE,Catering Supplies,Catering Food & Beverages ,03.01.2020,16.02.2020,GPC01200000220,23.99
Stockport MBC,Services to People,Childrens & Educational Services,PAYPAL  ONLINE4DISC EB,Furniture and Equipment,Environmental Services Technical Equipment ,02.01.2020,16.02.2020,GPC01200000221,138.99
Stockport MBC,Corporate and Support Services,Cultural & Related Services,SAINSBURYS LOC6202,Catering Supplies,Catering Food & Beverages ,21.01.2020,16.02.2020,GPC01200000222,7.00
Stockport MBC,Services to People,Adult Social Care,CHAAT CART,Catering Supplies,Catering Food & Beverages ,17.01.2020,16.02.2020,GPC01200000223,25.00
Stockport MBC,Services to People,Adult Social Care,THE PRODUCE HALL COMPA,Catering Supplies,Catering Food & Beverages ,17.01.2020,16.02.2020,GPC01200000224,4.75
Stockport MBC,Services to People,Childrens & Educational Services,THE LOWRY CENTRE LTD,Fees and Charges,Education  ,15.01.2020,16.02.2020,GPC01200000225,40.50
Stockport MBC,Services to People,Childrens & Educational Services,THE LOWRY CENTRE LTD,Fees and Charges,Education  ,15.01.2020,16.02.2020,GPC01200000226,100.00
Stockport MBC,Services to People,Childrens & Educational Services,THE LOWRY CENTRE LTD,Fees and Charges,Education  ,15.01.2020,16.02.2020,GPC01200000227,100.00
Stockport MBC,Services to People,Childrens & Educational Services,B & Q 1279,Furniture and Equipment,Environmental Services Technical Equipment ,13.01.2020,16.02.2020,GPC01200000228,32.52
Stockport MBC,Services to People,Childrens & Educational Services,AMAZON.CO.UK ZH0GC6NR5,Furniture and Equipment,Environmental Services Technical Equipment ,10.01.2020,16.02.2020,GPC01200000229,27.46
Stockport MBC,Services to People,Childrens & Educational Services,HOMEBASE LTD,Furniture and Equipment,Environmental Services Technical Equipment ,09.01.2020,16.02.2020,GPC01200000230,40.74
Stockport MBC,Services to People,Childrens & Educational Services,AMZNMKTPLACE,Furniture and Equipment,Environmental Services Technical Equipment ,09.01.2020,16.02.2020,GPC01200000231,7.85
Stockport MBC,Services to People,Childrens & Educational Services,AMZNMKTPLACE,Furniture and Equipment,Environmental Services Technical Equipment ,09.01.2020,16.02.2020,GPC01200000232,36.99
Stockport MBC,Services to People,Childrens & Educational Services,AMAZON.CO.UK IY1XV4685,Furniture and Equipment,Environmental Services Technical Equipment ,08.01.2020,16.02.2020,GPC01200000233,18.79
Stockport MBC,Services to People,Childrens & Educational Services,B & Q 1279,Furniture and Equipment,Environmental Services Technical Equipment ,08.01.2020,16.02.2020,GPC01200000234,40.70
Stockport MBC,Services to People,Childrens & Educational Services,AMZNMKTPLACE,Furniture and Equipment,Environmental Services Technical Equipment ,05.01.2020,16.02.2020,GPC01200000235,27.48
Stockport MBC,Services to People,Childrens & Educational Services,AMAZON.CO.UK 9B38Y5YG5,Furniture and Equipment,Environmental Services Technical Equipment ,05.01.2020,16.02.2020,GPC01200000236,12.43
Stockport MBC,Corporate and Support Services,Planning Services,ALDI 2 773,Publicity and Promotion,Arts & Leisure Services  ,21.01.2020,16.02.2020,GPC01200000237,8.94
Stockport MBC,Corporate and Support Services,Central Support Costs,AMZNMKTPLACE AMAZON.CO,Furniture and Equipment,Environmental Services Technical Equipment ,30.01.2020,16.02.2020,GPC01200000238,106.98
Stockport MBC,Corporate and Support Services,Central Support Costs,STOCKPORT TVM,Travelling Expenses,Human Resources Travel & Subsistence ,30.01.2020,16.02.2020,GPC01200000239,13.00
Stockport MBC,Corporate and Support Services,Central Support Costs,GOOGLE  CLOUD_006788-6,Information and Communications Technology,Information Communication Technology  ,30.01.2020,16.02.2020,GPC01200000240,0.01
Stockport MBC,Corporate and Support Services,Central Support Costs,GITHUB,Information and Communications Technology,Information Communication Technology  ,28.01.2020,16.02.2020,GPC01200000241,162.63
Stockport MBC,Corporate and Support Services,Central Support Costs,MENTIMETER,Information and Communications Technology,Information Communication Technology  ,18.01.2020,16.02.2020,GPC01200000242,113.76
Stockport MBC,Corporate and Support Services,Central Support Costs,AO RETAIL LIMITED,Furniture and Equipment,Environmental Services Technical Equipment ,16.01.2020,16.02.2020,GPC01200000243,398.00
Stockport MBC,Corporate and Support Services,Central Support Costs,SPECSAVERS 00418000STC,Furniture and Equipment,Environmental Services Technical Equipment ,16.01.2020,16.02.2020,GPC01200000244,10.00
Stockport MBC,Corporate and Support Services,Central Support Costs,EB  CAMP DIGITAL 2020,Expenses and Allowances,Human Resources Training & Conferences ,15.01.2020,16.02.2020,GPC01200000245,284.40
Stockport MBC,Corporate and Support Services,Central Support Costs,AMZNMKTPLACE,Information and Communications Technology,Information Communication Technology  ,15.01.2020,16.02.2020,GPC01200000246,51.96
Stockport MBC,Corporate and Support Services,Central Support Costs,THE CRYSTAL MAZE LIVE,Staff Training,Human Resources  ,14.01.2020,16.02.2020,GPC01200000247,263.92
Stockport MBC,Corporate and Support Services,Central Support Costs,AUTH0.COM,Information and Communications Technology,Information Communication Technology  ,13.01.2020,16.02.2020,GPC01200000248,9.54
Stockport MBC,Corporate and Support Services,Central Support Costs,WWW.CONTENTFUL.COM,Information and Communications Technology,Information Communication Technology  ,10.01.2020,16.02.2020,GPC01200000249,758.63
Stockport MBC,Corporate and Support Services,Central Support Costs,AUTH0.COM,Information and Communications Technology,Information Communication Technology  ,05.01.2020,16.02.2020,GPC01200000250,157.70
Stockport MBC,Corporate and Support Services,Central Support Costs,AWS EMEA,Information and Communications Technology,Information Communication Technology  ,03.01.2020,16.02.2020,GPC01200000251,826.12
Stockport MBC,Corporate and Support Services,Cultural & Related Services,AMAZON.CO.UK FR6690SD5,Library Equipment,Education Library Books ,22.01.2020,16.02.2020,GPC01200000252,24.78
Stockport MBC,Corporate and Support Services,Cultural & Related Services,PAYPAL  LGBTHISTORY,Furniture and Equipment,Environmental Services Technical Equipment ,03.01.2020,16.02.2020,GPC01200000253,100.00
Stockport MBC,Services to People,Childrens & Educational Services,WM MORRISONS STORE,Catering Supplies,Catering Food & Beverages ,08.01.2020,16.02.2020,GPC01200000254,59.15
Stockport MBC,Services to People,Childrens & Educational Services,SAINSBURYS SUPERMARKET,Office Expenses,Stationery    ,30.01.2020,16.02.2020,GPC01200000255,2.00
Stockport MBC,Services to People,Childrens & Educational Services,SAINSBURYS SACAT0862,Catering Supplies,Catering Food & Beverages ,29.01.2020,16.02.2020,GPC01200000256,8.45
Stockport MBC,Services to People,Childrens & Educational Services,ASDA SUPERSTORE,Catering Supplies,Catering Food & Beverages ,27.01.2020,16.02.2020,GPC01200000257,3.60
Stockport MBC,Services to People,Childrens & Educational Services,WWW.DOMINOS.CO.UK,Catering Supplies,Catering Food & Beverages ,27.01.2020,16.02.2020,GPC01200000258,25.99
Stockport MBC,Services to People,Childrens & Educational Services,SAINSBURYS SACAT 2051,Catering Supplies,Catering Food & Beverages ,27.01.2020,16.02.2020,GPC01200000259,11.60
Stockport MBC,Services to People,Childrens & Educational Services,ASDA SUPERSTORE,Catering Supplies,Catering Food & Beverages ,22.01.2020,16.02.2020,GPC01200000260,7.57
Stockport MBC,Services to People,Childrens & Educational Services,ASDA SUPERSTORE,Catering Supplies,Catering Food & Beverages ,20.01.2020,16.02.2020,GPC01200000261,5.38
Stockport MBC,Services to People,Childrens & Educational Services,METROLINK TVM,Travelling Expenses,Human Resources Travel & Subsistence ,18.01.2020,16.02.2020,GPC01200000262,3.20
Stockport MBC,Services to People,Childrens & Educational Services,BOOTS 1182,Fees and Charges,Education  ,18.01.2020,16.02.2020,GPC01200000263,6.28
Stockport MBC,Services to People,Childrens & Educational Services,STOCKPORT T/O,Travelling Expenses,Human Resources Travel & Subsistence ,18.01.2020,16.02.2020,GPC01200000264,33.60
Stockport MBC,Services to People,Childrens & Educational Services,ASDA SUPERSTORE,Catering Supplies,Catering Food & Beverages ,15.01.2020,16.02.2020,GPC01200000265,12.14
Stockport MBC,Services to People,Childrens & Educational Services,ASDA SUPERSTORE,Catering Supplies,Catering Food & Beverages ,13.01.2020,16.02.2020,GPC01200000266,6.39
Stockport MBC,Services to People,Childrens & Educational Services,THE ENTERTAINER 58,Furniture and Equipment,Furniture & Soft Furnishings  ,13.01.2020,16.02.2020,GPC01200000267,8.24
Stockport MBC,Services to People,Childrens & Educational Services,STOCKPORT T/O,Travelling Expenses,Human Resources Travel & Subsistence ,09.01.2020,16.02.2020,GPC01200000268,14.60
Stockport MBC,Services to People,Childrens & Educational Services,ASDA SUPERSTORE,Catering Supplies,Catering Food & Beverages ,08.01.2020,16.02.2020,GPC01200000269,9.53
Stockport MBC,Services to People,Childrens & Educational Services,AMAZON.CO.UK,Library Equipment,Education Library Books ,18.01.2020,16.02.2020,GPC01200000270,-1.99
Stockport MBC,Services to People,Childrens & Educational Services,AMZNMKTPLACE,Furniture and Equipment,Furniture & Soft Furnishings  ,15.01.2020,16.02.2020,GPC01200000271,15.18
Stockport MBC,Services to People,Childrens & Educational Services,AMZNMKTPLACE,Furniture and Equipment,Furniture & Soft Furnishings  ,14.01.2020,16.02.2020,GPC01200000272,8.99
Stockport MBC,Services to People,Childrens & Educational Services,TWINKL LIMITED,Furniture and Equipment,Furniture & Soft Furnishings  ,13.01.2020,16.02.2020,GPC01200000273,71.16
Stockport MBC,Services to People,Childrens & Educational Services,AMAZON.CO.UK 445HT96F5,Library Equipment,Education Library Books ,13.01.2020,16.02.2020,GPC01200000274,411.59
Stockport MBC,Services to People,Childrens & Educational Services,AMAZON.CO.UK,Library Equipment,Education Library Books ,13.01.2020,16.02.2020,GPC01200000275,-1.20
Stockport MBC,Services to People,Childrens & Educational Services,AMAZON.CO.UK FL4A91WC5,Library Equipment,Education Library Books ,12.01.2020,16.02.2020,GPC01200000276,37.94
Stockport MBC,Services to People,Childrens & Educational Services,BRAMALL PARK GOLF CLUB,Staff Training,Human Resources  ,07.01.2020,16.02.2020,GPC01200000277,14.15
Stockport MBC,Corporate and Support Services,Central Support Costs,AMZNMKTPLACE,Furniture and Equipment,Environmental Services Technical Equipment ,27.01.2020,16.02.2020,GPC01200000278,9.97
Stockport MBC,Corporate and Support Services,Central Support Costs,REPLACEBASE,Furniture and Equipment,Environmental Services Technical Equipment ,23.01.2020,16.02.2020,GPC01200000279,156.13
Stockport MBC,Corporate and Support Services,Central Support Costs,REPLACEBASE,Furniture and Equipment,Environmental Services Technical Equipment ,17.01.2020,16.02.2020,GPC01200000280,139.75
Stockport MBC,Corporate and Support Services,Central Support Costs,AMAZON.CO.UK 8T1XX9UT5,Furniture and Equipment,Environmental Services Technical Equipment ,06.01.2020,16.02.2020,GPC01200000281,66.27
Stockport MBC,Corporate and Support Services,Cultural & Related Services,THETRAINLINE.COM,Travelling Expenses,Human Resources Travel & Subsistence ,30.01.2020,16.02.2020,GPC01200000282,77.30
Stockport MBC,Services to Place,Highways & Transport Services,NACC,Staff Training,Human Resources  ,30.01.2020,16.02.2020,GPC01200000283,30.90
Stockport MBC,Services to Place,Highways & Transport Services,EB  LIVING STREETS NAT,Staff Training,Human Resources  ,28.01.2020,16.02.2020,GPC01200000284,30.00
Stockport MBC,Services to Place,Highways & Transport Services,TRAINLINE,Travelling Expenses,Human Resources Travel & Subsistence ,27.01.2020,16.02.2020,GPC01200000285,394.50
Stockport MBC,Services to Place,Highways & Transport Services,THETRAINLINE.COM,Travelling Expenses,Human Resources Travel & Subsistence ,27.01.2020,16.02.2020,GPC01200000286,-273.00
Stockport MBC,Services to Place,Highways & Transport Services,THETRAINLINE.COM,Travelling Expenses,Human Resources Travel & Subsistence ,22.01.2020,16.02.2020,GPC01200000287,19.15
Stockport MBC,Services to Place,Highways & Transport Services,THETRAINLINE.COM,Travelling Expenses,Human Resources Travel & Subsistence ,22.01.2020,16.02.2020,GPC01200000288,56.70
Stockport MBC,Services to Place,Highways & Transport Services,THETRAINLINE.COM,Travelling Expenses,Human Resources Travel & Subsistence ,22.01.2020,16.02.2020,GPC01200000289,56.70
Stockport MBC,Services to Place,Highways & Transport Services,THETRAINLINE.COM,Travelling Expenses,Human Resources Travel & Subsistence ,22.01.2020,16.02.2020,GPC01200000290,56.70
Stockport MBC,Services to Place,Highways & Transport Services,THETRAINLINE.COM,Travelling Expenses,Human Resources Travel & Subsistence ,22.01.2020,16.02.2020,GPC01200000291,56.70
Stockport MBC,Services to Place,Highways & Transport Services,THETRAINLINE.COM,Travelling Expenses,Human Resources Travel & Subsistence ,21.01.2020,16.02.2020,GPC01200000292,284.50
Stockport MBC,Services to Place,Highways & Transport Services,THETRAINLINE.COM,Travelling Expenses,Human Resources Travel & Subsistence ,15.01.2020,16.02.2020,GPC01200000293,284.50
Stockport MBC,Services to Place,Highways & Transport Services,TRAINLINE,Travelling Expenses,Human Resources Travel & Subsistence ,15.01.2020,16.02.2020,GPC01200000294,183.50
Stockport MBC,Corporate and Support Services,Central Support Costs,HOLIDAY INNS,Expenses and Allowances,Catering  ,14.01.2020,16.02.2020,GPC01200000295,612.00
Stockport MBC,Services to Place,Highways & Transport Services,AMZNMKTPLACE,Furniture and Equipment,Environmental Services Technical Equipment ,08.01.2020,16.02.2020,GPC01200000296,68.48
Stockport MBC,Corporate and Support Services,Corporate & Democratic Core,TRAINLINE,Travelling Expenses,Human Resources Travel & Subsistence ,07.01.2020,16.02.2020,GPC01200000297,361.50
Stockport MBC,Corporate and Support Services,Corporate & Democratic Core,TRAINLINE,Travelling Expenses,Human Resources Travel & Subsistence ,07.01.2020,16.02.2020,GPC01200000298,361.50
Stockport MBC,Services to Place,Highways & Transport Services,WILKO.COM,Furniture and Equipment,Environmental Services Technical Equipment ,06.01.2020,16.02.2020,GPC01200000299,63.00
